fUSD/lending_fUSD_20260207
["ID","MTS","AMOUNT","RATE_DAILY","PERIOD"]
[404683625,1770439840654,-5503.29,0.0001799,2]
[404683626,1770439840664,-197.30115299,0.0001799,2]
[404683627,1770439840673,-197.30115299,0.0001799,2]
[404683628,1770439840682,-197.30115299,0.0001799,2]
[404683629,1770439840691,-300.0,0.00017999,2]
[404683630,1770439840700,-300.0,0.00017999,2]
[404683631,1770439840709,-300.0,0.00017999,2]
[404683632,1770439840718,-300.0,0.00017999,2]
[404683633,1770439840727,-300.0,0.00017999,2]
[404683634,1770439840737,-666.0,0.00017999,2]
[404683635,1770439840746,-300.0,0.00017999,2]
[404683636,1770439840755,-195879.22317203,0.00018,2]
[404683637,1770439840766,-7503.52481063,0.00018,2]
[404683638,1770439840775,-2551.2516386,0.00018,2]
[404683639,1770439840784,-109560.53726566,0.00018,2]
[404683640,1770439840792,-54122.63211108,0.00018,2]
[404683651,1770439845379,-2478.61934173,0.00018,2]
[404683652,1770439845391,-997.7785673,0.00018,2]
[404683653,1770439845647,-337.41252319,0.00018,2]
[404683656,1770439923642,493.0,0.0003561,120]
[404683658,1770440087788,20971.66,0.0002,14]
[404683659,1770440218854,487.34,0.00025128,120]
[404683660,1770440304936,-195.0,0.00011501,2]
[404683661,1770440304957,-195.0,0.00011694,2]
[404683662,1770440304980,-195.0,0.00011887,2]
[404683663,1770440356658,415.0,9.393e-05,2]
[404683664,1770440397302,-85.0,9.393e-05,2]
[404683665,1770440397324,-272.57337687,9.941e-05,2]
[404683671,1770441031729,-195.0,0.00012706,2]
[404683672,1770441031740,-195.0,0.00012711,2]
[404683673,1770441031751,-1412.48368574,0.00012941,2]
[404683674,1770441031761,-195.0,0.00012988,2]
[404683676,1770441031771,-2668.23,0.00013416,2]
[404683679,1770441031781,-152.0,0.000138,3]
[404683681,1770441031790,-489.0,0.00013963,2]
[404683683,1770441031800,-2500.0,0.00013964,2]
[404683685,1770441031811,-2500.0,0.00013964,2]
[404683687,1770441031821,-2500.0,0.00013964,2]
[404683689,1770441031832,-1056.16927478,0.00013964,2]
[404683690,1770441031843,-300.0,0.00013964,2]
[404683691,1770441031852,-300.0,0.00013964,2]
[404683692,1770441031862,-300.0,0.00013964,2]
[404683693,1770441031873,-195.0,0.00013964,2]
[404683694,1770441031884,-300.0,0.00013976,2]
[404683695,1770441031894,-600.0,0.00013976,2]
[404683696,1770441031905,-600.0,0.00013976,2]
[404683697,1770441031916,-719.87638363,0.00013976,2]
[404683698,1770441031926,-195.0,0.00013976,2]
[404683699,1770441031937,-300.0,0.00013976,2]
[404683700,1770441031948,-600.0,0.00013976,2]
[404683701,1770441031958,-600.0,0.00013976,2]
[404683702,1770441031968,-160.0,0.00014397,2]
[404683703,1770441031978,-1412.48368574,0.00014479,2]
[404683704,1770441031988,-250.0,0.00015,2]
[404683705,1770441031998,-209.40437684,0.00015173,2]
[404683706,1770441032008,-217.15233878,0.00015228,2]
[404683708,1770441032019,-225.18697532,0.00015283,2]
[404683710,1770441032029,-233.51889341,0.00015338,2]
[404683711,1770441032039,-242.15909246,0.00015393,2]
[404683712,1770441032048,-251.11897888,0.00015448,2]
[404683713,1770441032058,-260.4103811,0.00015503,2]
[404683714,1770441032068,-270.0455652,0.00015558,2]
[404683715,1770441032078,-280.03725112,0.00015613,2]
[404683716,1770441032089,-290.39862941,0.00015668,2]
[404683717,1770441032099,-301.1433787,0.00015723,2]
[404683718,1770441032110,-1412.48368574,0.00016017,2]
[404683719,1770441032120,-152.0,0.0001605,4]
[404683720,1770441032130,-487.34,0.00016752,2]
[404683721,1770441032141,-250.75057009,0.00016788,2]
[404683722,1770441032151,-300.0,0.00017,2]
[404683723,1770441032161,-163.0,0.0001736,2]
[404683724,1770441032171,-1412.48368574,0.00017556,2]
[404683725,1770441032182,-432.0684372,0.0001764,2]
[404683726,1770441032192,-3306.64629581,0.0001765,2]
[404683727,1770441032205,-1192.60359585,0.0001765,2]
[404683731,1770441037548,-82.8,0.0001765,2]
[404683841,1770441039892,-6584.0,0.00017101,2]
[404683842,1770441039903,-76930.18370834,0.0001765,2]
[404683843,1770441039913,-2500.0,0.0001765,2]
[404683844,1770441039924,-222.664,0.00017749,2]
[404683845,1770441039935,-2687.649,0.00017749,2]
[404683846,1770441039946,-300.0,0.00017749,2]
[404683847,1770441039956,-300.0,0.00017749,2]
[404683848,1770441039967,-666.0,0.00017749,2]
[404683849,1770441039977,-3091.0,0.0001775,2]
[404683850,1770441039987,-487.0,0.0001775,2]
[404683851,1770441039998,-487.0,0.0001775,2]
[404683853,1770441040007,-487.0,0.0001775,2]
[404683854,1770441040017,-487.0,0.0001775,2]
[404683855,1770441040028,-487.0,0.0001775,2]
[404683856,1770441040037,-487.0,0.0001775,2]
[404683857,1770441040047,-487.0,0.0001775,2]
[404683858,1770441040057,-487.0,0.0001775,2]
[404683859,1770441040067,-487.0,0.0001775,2]
[404683860,1770441040077,-487.0,0.0001775,2]
[404683861,1770441040087,-487.0,0.0001775,2]
[404683862,1770441040096,-487.0,0.0001775,2]
[404683863,1770441040106,-487.0,0.0001775,2]
[404683864,1770441040116,-487.0,0.0001775,2]
[404683865,1770441040127,-487.0,0.0001775,2]
[404683867,1770441040137,-487.0,0.0001775,2]
[404683868,1770441040147,-487.0,0.0001775,2]
[404683869,1770441040158,-487.0,0.0001775,2]
[404683870,1770441040168,-487.0,0.0001775,2]
[404683871,1770441040178,-487.0,0.0001775,2]
[404683872,1770441040188,-487.0,0.0001775,2]
[404683873,1770441040198,-487.0,0.0001775,2]
[404683874,1770441040207,-883.08,0.0001775,2]
[404683875,1770441040218,-1000.0,0.000178,2]
[404683876,1770441040228,-288.66694253,0.00017822,2]
[404683877,1770441040238,-200.0,0.00017856,2]
[404683878,1770441040247,-417.14321601,0.00017899,2]
[404683879,1770441040257,-311.13644242,0.00017899,2]
[404683880,1770441040267,-500.0,0.00017899,2]
[404683881,1770441040277,-246.82592624,0.00017899,2]
[404683882,1770441040287,-29561.8777,0.000179,2]
[404683883,1770441040296,-2617.8484,0.000179,2]
[404683884,1770441040306,-2027.38894736,0.000179,2]
[404683885,1770441040316,-637.32067606,0.000179,2]
[404683886,1770441040326,-355.96035412,0.000179,2]
[404683887,1770441040336,-926.53357783,0.000179,2]
[404683888,1770441040346,-197.30115299,0.0001799,2]
[404683889,1770441040355,-197.30115299,0.0001799,2]
[404683890,1770441040365,-197.30115299,0.0001799,2]
[404683891,1770441040375,-203.077,0.00017999,2]
[404683892,1770441040389,-300.0,0.00017999,2]
[404683893,1770441040399,-300.0,0.00017999,2]
[404683894,1770441040408,-666.0,0.00017999,2]
[404683895,1770441040418,-300.0,0.00017999,2]
[404683896,1770441040430,-277.81619313,0.00017999,2]
[404683897,1770441040439,-354864.59696498,0.00018,2]
[404683904,1770441043257,-983.67505372,0.00018,2]
[404683905,1770441043269,-514.67881028,0.00018,2]
[404683906,1770441043281,-380.94922746,0.00018,2]
[404683907,1770441043312,-642.20258695,0.00018,2]
[404683929,1770441045515,-69372.15054666,0.00018,2]
[404683930,1770441045570,-320.9600003,0.00018,2]
[404683931,1770441045679,-14172.99999999,0.00018,2]
[404683932,1770441045734,-365.36548123,0.00018,2]
[404683936,1770441124106,918.0,0.0003561,120]
[404683937,1770441244247,249.0,0.0003561,120]
[404683938,1770441257282,324.66,0.00035589,120]
[404683939,1770441324640,-152.53250839,0.0002041,30]
[404683940,1770441324693,-847.46749161,0.000209,30]
[404683941,1770441378102,-480.0,0.000209,30]
[404683942,1770441569518,263.4474661,0.0003561,120]
[404683945,1770441722951,1149.0,0.0003561,120]
[404683946,1770441783779,537.0,0.0003561,120]
[404683947,1770441843021,173.04449891,0.0003561,120]
[404683957,1770442109970,4657.95792463,0.0003,120]
[404683972,1770442231681,-398.08280932,0.000108,2]
[404683973,1770442231691,-238.0,0.000108,2]
[404683974,1770442231700,-195.0,0.0001107,2]
[404683975,1770442231709,-500.0,0.0001134,2]
[404683976,1770442231718,-250.0,0.0001134,2]
[404683977,1770442231727,-300.0,0.0001134,2]
[404683978,1770442231737,-300.0,0.00011878,2]
[404683979,1770442231746,-1200.0,0.00011879,2]
[404683980,1770442231755,-300.0,0.00011879,2]
[404683981,1770442231764,-300.0,0.00011879,2]
[404683982,1770442231774,-300.0,0.00011879,2]
[404683983,1770442231784,-1200.0,0.00011879,2]
[404683984,1770442231793,-195.0,0.0001188,2]
[404683985,1770442231802,-500.0,0.0001188,2]
[404683986,1770442231811,-1292.50839752,0.0001188,2]
[404683987,1770442231820,-250.0,0.0001188,2]
[404683988,1770442231830,-300.0,0.0001188,2]
[404683989,1770442231839,-195.0,0.0001188,2]
[404683990,1770442231848,-195.0,0.00012369,2]
[404683991,1770442231858,-250.0,0.00012652,2]
[404683992,1770442231867,-300.0,0.00012652,2]
[404683993,1770442231879,-300.0,0.00012652,2]
[404683994,1770442231888,-168.44144585,0.00012652,2]
[404683995,1770442231899,-420.0,0.00013041,2]
[404683996,1770442231908,-300.0,0.00013042,2]
[404683997,1770442231919,-1334.0,0.00013067,2]
[404683999,1770442231929,-1292.50839752,0.00013454,2]
[404684001,1770442231939,-153.0,0.00013938,2]
[404684003,1770442231948,-153.0,0.00013938,2]
[404684006,1770442231959,-280.60032755,0.00013938,2]
[404684008,1770442231968,-195.0,0.00014274,2]
[404684009,1770442231977,-250.0,0.00014774,2]
[404684011,1770442231987,-250.0,0.00015,2]
[404684013,1770442231996,-1292.50839752,0.00015029,2]
[404684015,1770442232006,-1839.19,0.00015643,2]
[404684017,1770442232015,-184.2,0.00015761,2]
[404684019,1770442232025,-320.27,0.00015822,2]
[404684021,1770442232034,-247.68646458,0.00015872,2]
[404684024,1770442232044,-500.0,0.00015886,2]
[404684026,1770442232053,-200.0,0.00015947,2]
[404684028,1770442232063,-3240.0,0.00015972,2]
[404684030,1770442232072,-1219.82,0.000162,5]
[404684031,1770442232081,-200.0,0.0001635,2]
[404684033,1770442232090,-500.0,0.000164,2]
[404684035,1770442232099,-788.5507,0.00016418,2]
[404684038,1770442232109,-170.0,0.00016418,2]
[404684039,1770442232118,-247.68646457,0.00016432,2]
[404684042,1770442232128,-192.89,0.000165,2]
[404684044,1770442232138,-192.89,0.000165,2]
[404684045,1770442232147,-209.40437684,0.00016508,2]
[404684048,1770442232160,-166.66,0.00016547,2]
[404684050,1770442232170,-217.15233878,0.00016563,2]
[404684051,1770442232179,-1292.50839752,0.00016603,2]
[404684052,1770442232188,-225.18697532,0.00016618,2]
[404684053,1770442232197,-500.0,0.00016657,2]
[404684054,1770442232206,-233.51889341,0.00016673,2]
[404684055,1770442232215,-242.15909246,0.00016728,2]
[404684056,1770442232224,-251.11897888,0.00016783,2]
[404684057,1770442232232,-260.4103811,0.00016838,2]
[404684058,1770442232241,-270.0455652,0.00016893,2]
[404684059,1770442232250,-166.66,0.00016895,2]
[404684060,1770442232259,-2500.0,0.00016901,2]
[404684061,1770442232268,-183.76138925,0.00016948,2]
[404684062,1770442232277,-247.68646457,0.00016991,2]
[404684063,1770442232286,-1395.70215801,0.00016991,2]
[404684064,1770442232294,-300.0,0.00017,2]
[404684065,1770442232302,-300.0,0.00017,2]
[404684066,1770442232311,-2890.0,0.00017001,2]
[404684068,1770442232320,-1395.70215792,0.00017092,2]
[404684069,1770442232329,-6584.0,0.00017101,2]
[404684071,1770442232338,-1395.70215792,0.00017193,2]
[404684072,1770442232347,-166.66,0.00017243,2]
[404684074,1770442232356,-1395.70215792,0.00017294,2]
[404684076,1770442232365,-1395.70215792,0.00017395,2]
[404684078,1770442232374,-1395.70215792,0.00017496,2]
[404684080,1770442232384,-166.66,0.00017592,2]
[404684082,1770442232393,-1395.70215792,0.00017597,2]
[404684084,1770442232402,-216.0342186,0.0001764,2]
[404684086,1770442232411,-238.5708123,0.00017698,2]
[404684088,1770442232420,-1395.70215792,0.00017698,2]
[404684090,1770442232428,-76930.1837,0.00017699,2]
[404684092,1770442232437,-300.0,0.00017798,2]
[404684094,1770442232446,-2687.649,0.00017798,2]
[404684095,1770442232455,-222.664,0.00017798,2]
[404684097,1770442232463,-487.0,0.00017799,2]
[404684099,1770442232474,-487.0,0.00017799,2]
[404684101,1770442232483,-487.0,0.00017799,2]
[404684103,1770442232492,-487.0,0.00017799,2]
[404684105,1770442232501,-487.0,0.00017799,2]
[404684107,1770442232511,-487.0,0.00017799,2]
[404684109,1770442232520,-487.0,0.00017799,2]
[404684111,1770442232529,-487.0,0.00017799,2]
[404684113,1770442232546,-487.0,0.00017799,2]
[404684115,1770442232555,-487.0,0.00017799,2]
[404684117,1770442232564,-487.0,0.00017799,2]
[404684119,1770442232575,-487.0,0.00017799,2]
[404684121,1770442232584,-487.0,0.00017799,2]
[404684123,1770442232593,-487.0,0.00017799,2]
[404684124,1770442232602,-487.0,0.00017799,2]
[404684126,1770442232612,-487.0,0.00017799,2]
[404684128,1770442232622,-487.0,0.00017799,2]
[404684131,1770442232632,-487.0,0.00017799,2]
[404684132,1770442232641,-487.0,0.00017799,2]
[404684134,1770442232651,-487.0,0.00017799,2]
[404684136,1770442232659,-487.0,0.00017799,2]
[404684138,1770442232669,-487.0,0.00017799,2]
[404684140,1770442232678,-883.08,0.00017799,2]
[404684142,1770442232687,-1395.70215792,0.00017799,2]
[404684144,1770442232698,-200.0,0.00017856,2]
[404684146,1770442232708,-33304.9777,0.00017899,2]
[404684148,1770442232717,-1000.0,0.00017899,2]
[404684150,1770442232726,-237.6106,0.000179,2]
[404684152,1770442232735,-8584.0075,0.000179,2]
[404684154,1770442232743,-2617.8484,0.000179,2]
[404684156,1770442232753,-1395.70215792,0.000179,2]
[404684158,1770442232762,-355.96035412,0.000179,2]
[404684160,1770442232771,-2376.63977989,0.000179,2]
[404684162,1770442232780,-637.32067606,0.000179,2]
[404684164,1770442232789,-642.20258695,0.000179,3]
[404684166,1770442232798,-926.53357783,0.000179,2]
[404684168,1770442232807,-166.66,0.0001794,2]
[404684170,1770442232815,-840.0,0.00017975,2]
[404684172,1770442232824,-252.88284756,0.0001799,2]
[404684174,1770442232834,-252.88284756,0.0001799,2]
[404684176,1770442232843,-252.88284756,0.0001799,2]
[404684178,1770442232852,-203.077,0.00017999,2]
[404684180,1770442232861,-300.0,0.00017999,2]
[404684182,1770442232870,-666.0,0.00017999,2]
[404684183,1770442232880,-300.0,0.00017999,2]
[404684185,1770442232891,-300.0,0.00017999,2]
[404684187,1770442232899,-311.13644242,0.00017999,2]
[404684189,1770442232908,-500.0,0.00017999,2]
[404684191,1770442232917,-246.82592624,0.00017999,2]
[404684193,1770442232927,-11717.69002207,0.00017999,2]
[404684195,1770442232936,-300.0,0.00017999,2]
[404684197,1770442232945,-666.0,0.00017999,2]
[404684199,1770442232955,-417.14321601,0.00017999,2]
[404684201,1770442232964,-277.81619313,0.00017999,2]
[404684203,1770442232973,-134600.12049015,0.00018,2]
[404684205,1770442232985,-356830.521,0.00018,2]
[404684208,1770442232996,-30802.46579104,0.00018,2]
[404684210,1770442233007,-1028.92996851,0.00018,2]
[404684212,1770442233022,-2303.22682107,0.00018,2]
[404684214,1770442233033,-1741.21936042,0.00018,2]
[404684217,1770442233044,-2500.7394641,0.00018,2]
[404684399,1770442237801,-860.85068214,0.00018,2]
[404684400,1770442237911,-7047.3654783,0.00018,2]
[404684419,1770442239758,-2065.88115984,0.00018,2]
[404684425,1770442240133,-494888.67250799,0.00018,2]
[404684426,1770442240146,-13845.07740654,0.00018,2]
[404684427,1770442240157,-4912.82948163,0.00018,2]
[404684453,1770442243727,-925.9169098,0.00018,2]
[404684454,1770442243739,-740.70052028,0.00018,2]
[404684505,1770442245904,-6496.15953974,0.00018,2]
[404684508,1770442245966,-1110.06940007,0.00018,2]
[404684509,1770442245986,-20781.71049111,0.00018,2]
[404684510,1770442246022,-17314.53096333,0.00018,2]
[404684631,1770442623623,4387.3,0.00035616,120]
[404684633,1770442756139,292.4,0.00025216,120]
[404684634,1770442856833,500.0,0.00034,120]
[404684635,1770442873216,3500.0,0.00035,120]
[404684636,1770442893283,2000.0,0.000354,120]
[404684637,1770442963177,2100.0,0.000354,120]
[404684638,1770443063619,64982.8066298,0.0003561,120]
[404684644,1770443382755,1929.0,0.00035,120]
[404684646,1770443431841,-189.8,0.00013178,2]
[404684647,1770443431854,-250.0,0.00013261,2]
[404684648,1770443431863,-73.88056094,0.00013343,2]
[404684649,1770443431878,-121.11943906,0.00013343,2]
[404684650,1770443431887,-195.0,0.00013508,2]
[404684651,1770443431897,-300.0,0.00013902,2]
[404684652,1770443431906,-448.65962278,0.00013903,2]
[404684653,1770443431918,-151.34037722,0.00013903,2]
[404684654,1770443431928,-600.0,0.00013903,2]
[404684655,1770443431937,-12.69296567,0.00013903,2]
[404684656,1770443431948,-587.30703433,0.00013903,2]
[404684657,1770443431958,-385.21841909,0.00013903,2]
[404684658,1770443431970,-214.78158091,0.00013903,2]
[404684659,1770443431980,-1654.58585997,0.00014496,2]
[404684660,1770443431990,-195.0,0.00014496,2]
[404684661,1770443432000,-195.0,0.00014496,2]
[404684662,1770443432009,-600.0,0.00014496,2]
[404684663,1770443432019,-195.0,0.00014496,2]
[404684664,1770443432030,-300.0,0.00014496,2]
[404684665,1770443432041,-300.0,0.00014496,2]
[404684666,1770443432051,-543.16676808,0.00014496,2]
[404684667,1770443432063,-375.12799992,0.00014496,2]
[404684668,1770443432079,-522.90611704,0.00014496,2]
[404684669,1770443432091,-1807.87600631,0.00014496,2]
[404684670,1770443432103,-108.79910469,0.00014496,2]
[404684671,1770443432113,-250.0,0.00014496,2]
[404684672,1770443432125,-152.0,0.000147,3]
[404684673,1770443432135,-142.20089531,0.00016004,2]
[404684674,1770443432147,-1413.25471627,0.00016004,2]
[404684675,1770443432158,-657.58326595,0.00016004,2]
[404684676,1770443432176,-540.73112247,0.00016004,2]
[404684677,1770443432187,-377.05,0.00016089,2]
[404684678,1770443432196,-163.0,0.000164,2]
[404684680,1770443432208,-299.82,0.000164,2]
[404684682,1770443432217,-200.0,0.00016647,2]
[404684684,1770443432226,-1000.0,0.00016698,2]
[404684686,1770443432235,-1167.25673404,0.00016701,2]
[404684688,1770443432247,-150.0,0.0001671,2]
[404684690,1770443432256,-1576.61746563,0.00016711,2]
[404684692,1770443432265,-164.9652846,0.00016711,2]
[404684694,1770443432275,-385.26986404,0.00016711,2]
[404684695,1770443432285,-163.0,0.0001672,2]
[404684697,1770443432295,-166.7450837,0.00016791,2]
[404684698,1770443432304,-189.12771266,0.000168,2]
[404684699,1770443432315,-5.34362253,0.000168,2]
[404684700,1770443432325,-300.0,0.000168,2]
[404684701,1770443432335,-228.00278146,0.00016801,2]
[404684702,1770443432346,-835.60817854,0.00016801,2]
[404684703,1770443432357,-1665.89649599,0.00016801,2]
[404684704,1770443437892,-583.72879,0.00016801,2]
[404684705,1770443437949,-4364.80418251,0.00016801,2]
[404684706,1770443437960,-13649.86479778,0.00016801,2]
[404684707,1770443437972,-5263.42639381,0.00016801,2]
[404684708,1770443438007,-1575.97488614,0.00016801,2]
[404684709,1770443438017,-493.17330366,0.00016801,2]
[404684916,1770443440345,-418.54789703,0.00016801,2]
[404684919,1770443440355,-494888.67250799,0.00016801,2]
[404684925,1770443440407,-726.9536803,0.00016801,2]
[404685380,1770443444919,-551.47472303,0.00016801,2]
[404685494,1770443445995,-21049.17373925,0.00016801,2]
[404685514,1770443446173,-327.41395545,0.00016801,2]
[404685821,1770444167688,1053.2642754,0.00035616,120]
[404685822,1770444632045,-195.0,0.0001344,2]
[404685823,1770444632055,-195.0,0.00013474,2]
[404685824,1770444632064,-147.24295681,0.00013499,2]
[404685825,1770444632081,-2.75704319,0.00013499,2]
[404685826,1770444632092,-2132.25295681,0.000135,2]
[404685827,1770444632177,-1593.65969879,0.000135,2]
[404685828,1770444632239,-2935.86868876,0.000135,2]
[404685829,1770444632251,-279.79428379,0.000135,2]
[404685830,1770444632298,-71988.44785795,0.000135,2]
[404685831,1770444632308,-195.0,0.00013503,2]
[404685832,1770444632318,-1230.8862424,0.0001362,2]
[404685833,1770444632327,-156.0,0.000137,2]
[404685834,1770444632336,-151.0,0.00013775,2]
[404685835,1770444632346,-151.0,0.00013775,2]
[404685836,1770444632355,-151.0,0.00013775,2]
[404685837,1770444632364,-500.0,0.00013775,2]
[404685838,1770444632374,-151.0,0.00013775,2]
[404685839,1770444632384,-500.0,0.00013775,2]
[404685840,1770444632393,-151.0,0.00013775,2]
[404685841,1770444632403,-500.0,0.00013775,2]
[404685842,1770444632412,-151.0,0.00013775,2]
[404685843,1770444632421,-500.0,0.00013775,2]
[404685844,1770444632431,-201.73388355,0.00013775,2]
[404685845,1770444632440,-151.0,0.00013775,2]
[404685846,1770444632450,-500.0,0.00013775,2]
[404685847,1770444632459,-151.0,0.00013775,2]
[404685848,1770444632469,-500.0,0.00013775,2]
[404685849,1770444632478,-151.0,0.00013775,2]
[404685850,1770444632487,-500.0,0.00013775,2]
[404685851,1770444632497,-151.0,0.00013775,2]
[404685852,1770444632507,-500.0,0.00013775,2]
[404685853,1770444632516,-151.0,0.00013775,2]
[404685854,1770444632531,-500.0,0.00013775,2]
[404685855,1770444632540,-151.0,0.00013775,2]
[404685856,1770444632550,-500.0,0.00013775,2]
[404685857,1770444632560,-151.0,0.00013775,2]
[404685858,1770444632570,-500.0,0.00013775,2]
[404685859,1770444632580,-151.0,0.00013775,2]
[404685860,1770444632591,-520.91576166,0.00013775,2]
[404685861,1770444632601,-500.0,0.00013775,2]
[404685862,1770444632610,-151.0,0.00013775,2]
[404685863,1770444632630,-151.0,0.00013775,2]
[404685864,1770444632640,-500.0,0.00013775,2]
[404685865,1770444632650,-151.0,0.00013775,2]
[404685866,1770444632660,-151.0,0.00013775,2]
[404685867,1770444632669,-151.0,0.00013775,2]
[404685868,1770444632679,-151.0,0.00013775,2]
[404685869,1770444632690,-500.0,0.00013775,2]
[404685870,1770444632699,-151.0,0.00013775,2]
[404685871,1770444632709,-151.0,0.00013775,2]
[404685872,1770444632718,-151.0,0.00013775,2]
[404685873,1770444632729,-500.0,0.00013775,2]
[404685874,1770444632739,-151.0,0.00013775,2]
[404685875,1770444632748,-500.0,0.00013775,2]
[404685876,1770444632758,-151.0,0.00013775,2]
[404685877,1770444632767,-151.0,0.00013775,2]
[404685878,1770444632777,-200.0,0.00013775,2]
[404685879,1770444632786,-500.0,0.00013775,2]
[404685880,1770444632796,-151.0,0.00013775,2]
[404685881,1770444632806,-181.56790667,0.00013775,2]
[404685882,1770444632816,-151.0,0.00013775,2]
[404685883,1770444632826,-500.0,0.00013775,2]
[404685884,1770444632835,-151.0,0.00013775,2]
[404685885,1770444632845,-151.0,0.00013775,2]
[404685886,1770444632854,-500.0,0.00013775,2]
[404685887,1770444632863,-151.0,0.00013775,2]
[404685888,1770444632874,-151.0,0.00013775,2]
[404685889,1770444632883,-151.0,0.00013775,2]
[404685890,1770444632893,-500.0,0.00013775,2]
[404685891,1770444632902,-151.0,0.00013775,2]
[404685892,1770444632912,-598.92721308,0.00013775,2]
[404685893,1770444632921,-151.0,0.00013775,2]
[404685894,1770444632931,-151.0,0.00013775,2]
[404685895,1770444632940,-500.0,0.00013775,2]
[404685896,1770444632950,-2533.47,0.00013784,2]
[404685897,1770444632960,-500.0,0.00013784,2]
[404685898,1770444632969,-348.00314474,0.00013784,2]
[404685899,1770444632979,-150.0,0.000138,2]
[404685900,1770444632988,-9493.83315142,0.000138,2]
[404685902,1770444638270,-2896.91684858,0.000138,2]
[404685903,1770444638280,-600.0,0.00014738,2]
[404685904,1770444638289,-600.0,0.00014738,2]
[404685905,1770444638299,-600.0,0.00014738,2]
[404685906,1770444638309,-368.10217605,0.00014747,2]
[404685907,1770444638319,-195.0,0.00014747,2]
[404685908,1770444638328,-600.0,0.00014747,2]
[404685909,1770444638338,-600.0,0.00014747,2]
[404685910,1770444638347,-195.0,0.00014812,2]
[404685911,1770444638357,-250.0,0.00015,2]
[404685912,1770444638367,-1230.8862424,0.00015139,2]
[404685913,1770444638376,-150.0,0.00015291,2]
[404685914,1770444638386,-500.0,0.000154,2]
[404685915,1770444638395,-166.66,0.00015478,2]
[404685916,1770444638405,-1376.8,0.0001559,2]
[404685917,1770444638414,-166.66,0.00015804,2]
[404685918,1770444638424,-166.66,0.00016129,2]
[404685919,1770444638434,-200.0,0.00016242,2]
[404685920,1770444638443,-156.67,0.000164,2]
[404685921,1770444638452,-163.0,0.000164,2]
[404685922,1770444638462,-166.66,0.00016455,2]
[404685923,1770444638471,-2500.0,0.00016591,2]
[404685924,1770444638481,-165.88513623,0.00016643,2]
[404685925,1770444638491,-175.52213451,0.00016645,2]
[404685926,1770444638501,-1230.8862424,0.00016659,2]
[404685928,1770444638511,-300.0,0.0001669,2]
[404685930,1770444638523,-300.0,0.0001669,2]
[404685932,1770444638534,-500.0,0.0001669,2]
[404685934,1770444638543,-500.0,0.0001669,2]
[404685936,1770444638553,-500.0,0.0001669,2]
[404685938,1770444638563,-579.28035592,0.0001669,2]
[404685940,1770444638573,-214.415,0.0001669,2]
[404685941,1770444638582,-2463.584,0.0001669,2]
[404685943,1770444638592,-166.66,0.00016781,2]
[404685945,1770444638602,-154.280507,0.00016798,2]
[404685947,1770444638611,-292.4,0.00016811,2]
[404685949,1770444638620,-170.85,0.000169,2]
[404685951,1770444638630,-300.0,0.00017,2]
[404685953,1770444638639,-2024.81,0.00017101,2]
[404685955,1770444638648,-166.66,0.00017107,2]
[404685957,1770444638658,-840.0,0.0001736,2]
[404685959,1770444638667,-152.0,0.0001758,4]
[404685961,1770444638677,-840.0,0.00017655,2]
[404685963,1770444638687,-163.0,0.0001768,2]